[Event "GrandPrix_30.05"]
[Site "Chess.com"]
[Date "2020.05.30"]
[Round "5"]
[White "MAS_1704"]
[Black "Kildepiotr"]
[Result "1/2-1/2"]
[WhiteElo "2059"]
[BlackElo "1985"]
[TimeControl "600+2"]
[EndTime "10:25:26 PDT"]
[Termination "Game drawn - insufficient material"]

1. d4 {[%clk 0:10:00.2]} 1... c5 {[%clk 0:09:53.3]} 2. e3 {[%clk 0:09:54.8]}
2... Nf6 {[%clk 0:09:53.5]} 3. Nf3 {[%clk 0:09:52.2]} 3... d5 {[%clk 0:09:53.8]}
4. b3 {[%clk 0:09:39.9]} 4... Nc6 {[%clk 0:09:53.8]} 5. Bb2 {[%clk 0:09:39.7]}
5... Bg4 {[%clk 0:09:54.5]} 6. Be2 {[%clk 0:09:36.9]} 6... e6 {[%clk 0:09:55.4]}
7. O-O {[%clk 0:09:36.4]} 7... cxd4 {[%clk 0:09:55.4]} 8. Nxd4 {[%clk
0:09:28.1]} 8... Bxe2 {[%clk 0:09:55.3]} 9. Qxe2 {[%clk 0:09:27.6]} 9... Rc8
{[%clk 0:09:54.5]} 10. Rc1 {[%clk 0:09:06.9]} 10... Be7 {[%clk 0:09:42.1]} 11.
Nd2 {[%clk 0:08:41.1]} 11... O-O {[%clk 0:09:41.1]} 12. c4 {[%clk 0:08:40]}
12... a6 {[%clk 0:09:32.6]} 13. h3 {[%clk 0:08:22.7]} 13... Qd7 {[%clk 0:09:27]}
14. N2f3 {[%clk 0:08:14.9]} 14... Ne4 {[%clk 0:09:17.6]} 15. Nxc6 {[%clk
0:08:13.1]} 15... Qxc6 {[%clk 0:09:10]} 16. Ne5 {[%clk 0:07:59.2]} 16... Qd6
{[%clk 0:09:09.9]} 17. cxd5 {[%clk 0:07:52.8]} 17... Qxd5 {[%clk 0:09:06]} 18.
Rd1 {[%clk 0:07:47.5]} 18... Qb5 {[%clk 0:08:52.6]} 19. Qxb5 {[%clk 0:07:28]}
19... axb5 {[%clk 0:08:54.5]} 20. Rd7 {[%clk 0:05:08]} 20... Bf6 {[%clk
0:08:43.1]} 21. Rxb7 {[%clk 0:04:00.5]} 21... Rc2 {[%clk 0:08:40.2]} 22. Bd4
{[%clk 0:03:59]} 22... Rxf2 {[%clk 0:08:19.1]} 23. Rc1 {[%clk 0:02:56.6]} 23...
Bxe5 {[%clk 0:07:51]} 24. Bxe5 {[%clk 0:02:55.3]} 24... Ra8 {[%clk 0:07:49]} 25.
Rxb5 {[%clk 0:02:50.3]} 25... Rfxa2 {[%clk 0:07:28.7]} 26. Rb7 {[%clk
0:02:26.9]} 26... h5 {[%clk 0:07:03.5]} 27. h4 {[%clk 0:02:06.5]} 27... R8a5
{[%clk 0:06:19.5]} 28. Bf4 {[%clk 0:01:19.4]} 28... Ra1 {[%clk 0:06:06.3]} 29.
Rxa1 {[%clk 0:01:15.2]} 29... Rxa1+ {[%clk 0:06:06.7]} 30. Kh2 {[%clk 0:01:16]}
30... f6 {[%clk 0:06:07.5]} 31. Bc7 {[%clk 0:01:01.2]} 31... Re1 {[%clk
0:05:56]} 32. b4 {[%clk 0:00:57.1]} 32... Rxe3 {[%clk 0:05:53.3]} 33. b5 {[%clk
0:00:56.9]} 33... Rb3 {[%clk 0:05:50.9]} 34. b6 {[%clk 0:00:57.4]} 34... Kh7
{[%clk 0:05:29]} 35. Ra7 {[%clk 0:00:52.1]} 35... Nc5 {[%clk 0:05:16.8]} 36. Bd6
{[%clk 0:00:52.1]} 36... Ne4 {[%clk 0:05:13.9]} 37. Bc7 {[%clk 0:00:45.2]} 37...
Nc5 {[%clk 0:05:08.5]} 38. Bd6 {[%clk 0:00:43.8]} 38... Rb5 {[%clk 0:05:07.8]}
39. Bf8 {[%clk 0:00:35.6]} 39... Kg6 {[%clk 0:05:06.5]} 40. Rxg7+ {[%clk
0:00:31.8]} 40... Kf5 {[%clk 0:05:07.2]} 41. Bxc5 {[%clk 0:00:21.6]} 41... Rxc5
{[%clk 0:05:07.6]} 42. b7 {[%clk 0:00:21.5]} 42... Rb5 {[%clk 0:05:08]} 43. Rh7
{[%clk 0:00:21]} 43... Kg6 {[%clk 0:05:04.3]} 44. Rc7 {[%clk 0:00:18.6]} 44...
Rb3 {[%clk 0:04:58.2]} 45. Kg1 {[%clk 0:00:15]} 45... Rb2 {[%clk 0:04:57.3]} 46.
Kh2 {[%clk 0:00:13.2]} 46... e5 {[%clk 0:04:57.1]} 47. Kg3 {[%clk 0:00:13.7]}
47... Kf5 {[%clk 0:04:58]} 48. Kf3 {[%clk 0:00:10.1]} 48... Rb3+ {[%clk
0:04:58.6]} 49. Kf2 {[%clk 0:00:10.7]} 49... Kf4 {[%clk 0:04:48.5]} 50. g3+
{[%clk 0:00:09.6]} 50... Ke4 {[%clk 0:04:38.9]} 51. Rc4+ {[%clk 0:00:07.4]}
51... Kf5 {[%clk 0:04:39.9]} 52. Rc7 {[%clk 0:00:07.6]} 52... Ke6 {[%clk
0:04:39]} 53. Rh7 {[%clk 0:00:07.3]} 53... e4 {[%clk 0:04:27.9]} 54. Rc7 {[%clk
0:00:05.9]} 54... Kf5 {[%clk 0:04:22.6]} 55. Rg7 {[%clk 0:00:05]} 55... Ke5
{[%clk 0:04:17.8]} 56. Re7+ {[%clk 0:00:04.8]} 56... Kd5 {[%clk 0:04:15.5]} 57.
Rf7 {[%clk 0:00:04.6]} 57... Ke6 {[%clk 0:04:15.1]} 58. Rh7 {[%clk 0:00:04.9]}
58... f5 {[%clk 0:04:08.3]} 59. Rh6+ {[%clk 0:00:04.7]} 59... Ke5 {[%clk
0:04:09.2]} 60. Rxh5 {[%clk 0:00:05.7]} 60... Rxb7 {[%clk 0:04:07.5]} 61. g4
{[%clk 0:00:06.6]} 61... Rb2+ {[%clk 0:04:07.5]} 62. Ke3 {[%clk 0:00:05.9]}
62... Rb3+ {[%clk 0:04:08.5]} 63. Ke2 {[%clk 0:00:06.6]} 63... Kf4 {[%clk
0:04:02.1]} 64. Rxf5+ {[%clk 0:00:06.7]} 64... Kxg4 {[%clk 0:04:03]} 65. Rf8
{[%clk 0:00:07.1]} 65... Rh3 {[%clk 0:04:01.6]} 66. h5 {[%clk 0:00:06.5]} 66...
Kxh5 {[%clk 0:03:59.3]} 67. Rf4 {[%clk 0:00:05.8]} 67... e3 {[%clk 0:03:57.3]}
68. Rf3 {[%clk 0:00:06.3]} 68... Kg4 {[%clk 0:03:57.8]} 69. Rxh3 {[%clk
0:00:06.6]} 69... Kxh3 {[%clk 0:03:59.7]} 70. Kxe3 {[%clk 0:00:07.7]} 1/2-1/2

[Event "GrandPrix_30.05"]
[Site "Chess.com"]
[Date "2020.05.30"]
[Round "5"]
[White "Zubrrr"]
[Black "DariaVoit"]
[Result "0-1"]
[WhiteElo "2536"]
[BlackElo "2399"]
[TimeControl "600+2"]
[EndTime "10:25:34 PDT"]
[Termination "DariaVoit won by resignation"]

1. c4 {[%clk 0:10:01.9]} 1... e5 {[%clk 0:09:59.9]} 2. g3 {[%clk 0:10:03]} 2...
Nf6 {[%clk 0:10:00.2]} 3. Bg2 {[%clk 0:10:03.4]} 3... d5 {[%clk 0:10:01.7]} 4.
cxd5 {[%clk 0:10:04.3]} 4... Nxd5 {[%clk 0:10:03.6]} 5. Nc3 {[%clk 0:10:05.7]}
5... Nb6 {[%clk 0:10:04.7]} 6. Nf3 {[%clk 0:09:54.3]} 6... Nc6 {[%clk
0:10:04.3]} 7. O-O {[%clk 0:09:54.9]} 7... Be7 {[%clk 0:10:04.5]} 8. a3 {[%clk
0:09:55.5]} 8... O-O {[%clk 0:10:02.8]} 9. b4 {[%clk 0:09:54.3]} 9... Be6 {[%clk
0:09:58.1]} 10. d3 {[%clk 0:09:42.8]} 10... f6 {[%clk 0:09:56.2]} 11. b5 {[%clk
0:09:08.1]} 11... Nd4 {[%clk 0:09:46.8]} 12. Nd2 {[%clk 0:09:09.2]} 12... Qc8
{[%clk 0:09:38.2]} 13. e3 {[%clk 0:08:58.4]} 13... Nf5 {[%clk 0:09:37.6]} 14.
Qc2 {[%clk 0:07:52]} 14... a6 {[%clk 0:09:17.1]} 15. bxa6 {[%clk 0:06:27.6]}
15... Rxa6 {[%clk 0:09:16.1]} 16. Bb2 {[%clk 0:06:26.3]} 16... c6 {[%clk
0:08:49.7]} 17. Nb3 {[%clk 0:05:22.2]} 17... Bf7 {[%clk 0:07:32.2]} 18. Rfb1
{[%clk 0:04:28.7]} 18... Rd8 {[%clk 0:06:50.4]} 19. Bc1 {[%clk 0:03:31.5]} 19...
Qa8 {[%clk 0:06:41.3]} 20. Ne4 {[%clk 0:03:24.9]} 20... Bxa3 {[%clk 0:04:48.1]}
21. Nbc5 {[%clk 0:03:12.3]} 21... Bxc5 {[%clk 0:04:40.8]} 22. Rxa6 {[%clk
0:03:11.2]} 22... Qxa6 {[%clk 0:04:42.7]} 23. Nxc5 {[%clk 0:03:11.5]} 23... Qa7
{[%clk 0:04:33.1]} 24. Bd2 {[%clk 0:00:32.6]} 24... Nd6 {[%clk 0:04:01.5]} 25.
Nxb7 {[%clk 0:00:07.2]} 25... Qxb7 {[%clk 0:02:00.5]} 26. Ba5 {[%clk 0:00:07.9]}
26... Ndc8 {[%clk 0:01:55]} 27. Qc5 {[%clk 0:00:08.5]} 27... Rxd3 {[%clk
0:01:18.2]} 28. Bxb6 {[%clk 0:00:09]} 28... Ba2 {[%clk 0:00:50.2]} 29. Rb2
{[%clk 0:00:06.9]} 29... Rd1+ {[%clk 0:00:50.4]} 30. Bf1 {[%clk 0:00:08.2]}
30... Qa6 {[%clk 0:00:51.2]} 0-1

[Event "GrandPrix_30.05"]
[Site "Chess.com"]
[Date "2020.05.30"]
[Round "5"]
[White "IriBu"]
[Black "Forking_U"]
[Result "0-1"]
[WhiteElo "2182"]
[BlackElo "2155"]
[TimeControl "600+2"]
[EndTime "10:25:36 PDT"]
[Termination "Forking_U won by resignation"]

1. e4 {[%clk 0:10:01.9]} 1... e5 {[%clk 0:09:59.4]} 2. Nf3 {[%clk 0:10:02.4]}
2... Nc6 {[%clk 0:10:00.8]} 3. d4 {[%clk 0:10:01.8]} 3... exd4 {[%clk
0:10:01.2]} 4. Nxd4 {[%clk 0:10:02.7]} 4... Nf6 {[%clk 0:10:02.7]} 5. Nxc6
{[%clk 0:10:03]} 5... bxc6 {[%clk 0:10:03.5]} 6. Bd3 {[%clk 0:10:04]} 6... d5
{[%clk 0:09:51]} 7. exd5 {[%clk 0:10:02.1]} 7... cxd5 {[%clk 0:09:49.2]} 8. O-O
{[%clk 0:10:02.7]} 8... Be7 {[%clk 0:09:39.8]} 9. c4 {[%clk 0:10:03.2]} 9... d4
{[%clk 0:09:00.9]} 10. Bg5 {[%clk 0:09:42.1]} 10... O-O {[%clk 0:08:57.3]} 11.
Nd2 {[%clk 0:09:33.4]} 11... a5 {[%clk 0:08:26.1]} 12. Re1 {[%clk 0:09:31.1]}
12... Re8 {[%clk 0:06:37]} 13. Qf3 {[%clk 0:09:04.3]} 13... Rb8 {[%clk
0:06:21.5]} 14. Bxf6 {[%clk 0:08:45.5]} 14... Bxf6 {[%clk 0:06:21.8]} 15. Ne4
{[%clk 0:08:27.3]} 15... Be5 {[%clk 0:05:27.2]} 16. Ng3 {[%clk 0:08:13.6]} 16...
g6 {[%clk 0:05:17.9]} 17. Rab1 {[%clk 0:07:15.6]} 17... a4 {[%clk 0:04:50.8]}
18. Be4 {[%clk 0:07:07.2]} 18... Qf6 {[%clk 0:04:13.2]} 19. Bc6 {[%clk
0:06:46.3]} 19... Qxf3 {[%clk 0:04:13.9]} 20. gxf3 {[%clk 0:06:45.8]} 20... Re6
{[%clk 0:03:35.2]} 21. Bd5 {[%clk 0:06:15.4]} 21... Re7 {[%clk 0:03:32.6]} 22.
f4 {[%clk 0:06:13.2]} 22... Bd6 {[%clk 0:03:11.6]} 23. Ne4 {[%clk 0:06:10.8]}
23... Bb4 {[%clk 0:02:48.6]} 24. Red1 {[%clk 0:05:41.1]} 24... Bf5 {[%clk
0:02:12.1]} 25. f3 {[%clk 0:05:19.4]} 25... Bd6 {[%clk 0:01:55.9]} 26. b3 {[%clk
0:04:51.1]} 26... axb3 {[%clk 0:01:36]} 27. Rxb3 {[%clk 0:04:47.7]} 27... Rxb3
{[%clk 0:01:34.4]} 28. axb3 {[%clk 0:04:49.6]} 28... Bxf4 {[%clk 0:01:34.5]} 29.
b4 {[%clk 0:04:39.8]} 29... Kg7 {[%clk 0:01:04.9]} 30. Kg2 {[%clk 0:04:37.7]}
30... Bd7 {[%clk 0:01:03]} 31. Rxd4 {[%clk 0:04:24.7]} 31... Be5 {[%clk
0:00:46.5]} 32. Rd3 {[%clk 0:04:15.8]} 32... c6 {[%clk 0:00:47.7]} 33. Bxc6
{[%clk 0:04:01.9]} 33... Bxc6 {[%clk 0:00:48.4]} 34. b5 {[%clk 0:04:03.2]} 34...
Be8 {[%clk 0:00:16.2]} 35. Rd5 {[%clk 0:03:48]} 35... Bf4 {[%clk 0:00:09.4]} 36.
Nd6 {[%clk 0:03:25.2]} 36... Bd7 {[%clk 0:00:05.1]} 37. Kf2 {[%clk 0:03:16.1]}
37... Bxh2 {[%clk 0:00:03.5]} 38. c5 {[%clk 0:03:11.5]} 38... Bxd6 {[%clk
0:00:04.7]} 39. cxd6 {[%clk 0:03:11.7]} 39... Re8 {[%clk 0:00:04.1]} 40. Rc5
{[%clk 0:02:56.9]} 40... Rb8 {[%clk 0:00:05.2]} 41. Ke3 {[%clk 0:02:53]} 41...
Rxb5 {[%clk 0:00:03.6]} 42. Rc7 {[%clk 0:02:54.3]} 42... Be6 {[%clk 0:00:04.2]}
43. Ke4 {[%clk 0:02:50.9]} 43... Rd5 {[%clk 0:00:04.3]} 44. Rc6 {[%clk
0:02:51.8]} 44... Rd1 {[%clk 0:00:04.3]} 45. Rb6 {[%clk 0:02:52.5]} 45... Kf6
{[%clk 0:00:04.3]} 46. f4 {[%clk 0:02:53]} 46... h5 {[%clk 0:00:04.6]} 47. Ke3
{[%clk 0:02:51.1]} 47... h4 {[%clk 0:00:05.3]} 48. Ke2 {[%clk 0:02:52.6]} 48...
Rd5 {[%clk 0:00:06.2]} 49. Kf3 {[%clk 0:02:50.6]} 49... h3 {[%clk 0:00:06.8]}
50. Kg3 {[%clk 0:02:51.8]} 50... Rd3+ {[%clk 0:00:08]} 51. Kh2 {[%clk
0:02:53.1]} 51... Kf5 {[%clk 0:00:08]} 52. Rb5+ {[%clk 0:02:51.8]} 52... Kxf4
{[%clk 0:00:08.4]} 53. Rb4+ {[%clk 0:02:53.3]} 53... Kg5 {[%clk 0:00:08.3]} 54.
Rb5+ {[%clk 0:02:53.7]} 54... f5 {[%clk 0:00:07.6]} 55. Rb6 {[%clk 0:02:52.6]}
55... Kg4 {[%clk 0:00:07.4]} 56. Rb4+ {[%clk 0:02:53.2]} 56... f4 {[%clk
0:00:08.1]} 57. Rb1 {[%clk 0:02:49.2]} 57... Rd2+ {[%clk 0:00:07.9]} 58. Kh1
{[%clk 0:02:50.2]} 58... Bd5+ {[%clk 0:00:08.3]} 59. Kg1 {[%clk 0:02:51.2]}
59... h2+ {[%clk 0:00:09.6]} 0-1

[Event "GrandPrix_30.05"]
[Site "Chess.com"]
[Date "2020.05.30"]
[Round "5"]
[White "vagpat"]
[Black "DenLaz"]
[Result "0-1"]
[WhiteElo "2211"]
[BlackElo "2540"]
[TimeControl "600+2"]
[EndTime "10:25:38 PDT"]
[Termination "DenLaz won by resignation"]

1. e4 {[%clk 0:10:01.9]} 1... e5 {[%clk 0:10:00.3]} 2. Nf3 {[%clk 0:10:02.1]}
2... Nc6 {[%clk 0:10:01.6]} 3. Bc4 {[%clk 0:10:01.9]} 3... Bc5 {[%clk
0:10:01.8]} 4. c3 {[%clk 0:10:02.1]} 4... Nf6 {[%clk 0:10:02.6]} 5. d3 {[%clk
0:10:03]} 5... d6 {[%clk 0:10:03]} 6. h3 {[%clk 0:10:03.6]} 6... a6 {[%clk
0:10:03.9]} 7. Bb3 {[%clk 0:10:04.3]} 7... h6 {[%clk 0:10:04.7]} 8. Nbd2 {[%clk
0:10:05.3]} 8... Be6 {[%clk 0:10:05.1]} 9. Nf1 {[%clk 0:10:03.1]} 9... d5 {[%clk
0:09:36.4]} 10. Qe2 {[%clk 0:09:22.2]} 10... O-O {[%clk 0:09:34.3]} 11. Ng3
{[%clk 0:09:04.8]} 11... Re8 {[%clk 0:09:31.9]} 12. O-O {[%clk 0:07:40.2]} 12...
Qd7 {[%clk 0:09:30.2]} 13. Be3 {[%clk 0:07:23.9]} 13... Bf8 {[%clk 0:09:05.6]}
14. Rad1 {[%clk 0:06:55.2]} 14... d4 {[%clk 0:07:26.2]} 15. Bxe6 {[%clk
0:06:35.9]} 15... Rxe6 {[%clk 0:07:05.5]} 16. cxd4 {[%clk 0:06:32.9]} 16... Nxd4
{[%clk 0:07:04.6]} 17. Bxd4 {[%clk 0:05:36.9]} 17... exd4 {[%clk 0:07:06.5]} 18.
Nh4 {[%clk 0:05:38]} 18... c5 {[%clk 0:06:50.8]} 19. Rc1 {[%clk 0:05:32.2]}
19... Rae8 {[%clk 0:06:47.4]} 20. f4 {[%clk 0:05:18]} 20... Nd5 {[%clk
0:06:23.7]} 21. Nhf5 {[%clk 0:05:05.4]} 21... g6 {[%clk 0:06:10.5]} 22. Nh4
{[%clk 0:04:14.2]} 22... Ne3 {[%clk 0:06:09.2]} 23. Rf2 {[%clk 0:04:05.8]} 23...
f5 {[%clk 0:05:50.7]} 24. exf5 {[%clk 0:03:44.1]} 24... Nxf5 {[%clk 0:05:47.3]}
25. Qg4 {[%clk 0:03:38.9]} 25... h5 {[%clk 0:04:43.9]} 26. Nxh5 {[%clk
0:03:18.2]} 26... Qf7 {[%clk 0:04:35.6]} 27. Nxf5 {[%clk 0:02:56.6]} 27... Qxf5
{[%clk 0:04:34.4]} 28. Qxf5 {[%clk 0:02:53.1]} 28... gxf5 {[%clk 0:04:36.3]} 29.
Ng3 {[%clk 0:02:34.4]} 29... Re3 {[%clk 0:04:35.7]} 30. Nxf5 {[%clk 0:02:26.3]}
30... Rxd3 {[%clk 0:04:35.5]} 31. Kf1 {[%clk 0:02:08.7]} 31... b5 {[%clk
0:04:19.9]} 32. Re2 {[%clk 0:01:45]} 32... Rd8 {[%clk 0:04:06.2]} 33. Rec2
{[%clk 0:01:16.2]} 33... c4 {[%clk 0:03:58]} 34. b3 {[%clk 0:00:59.9]} 34... Rd5
{[%clk 0:03:43.3]} 35. Nh4 {[%clk 0:00:43]} 35... cxb3 {[%clk 0:03:12.7]} 36.
axb3 {[%clk 0:00:43.3]} 36... Rxb3 {[%clk 0:03:13.5]} 37. Ra2 {[%clk 0:00:36.1]}
37... Ra3 {[%clk 0:03:03.5]} 38. Rb2 {[%clk 0:00:29.1]} 38... d3 {[%clk
0:03:01.7]} 39. Rd1 {[%clk 0:00:26.9]} 39... Bg7 {[%clk 0:02:56.1]} 40. Rb4
{[%clk 0:00:23.6]} 40... Ra1 {[%clk 0:02:50.3]} 41. Rxa1 {[%clk 0:00:15.1]}
41... Bxa1 {[%clk 0:02:52.2]} 42. Rb1 {[%clk 0:00:15.1]} 42... Bc3 {[%clk
0:02:43.1]} 43. Nf3 {[%clk 0:00:11.4]} 43... a5 {[%clk 0:02:44.1]} 44. Kf2
{[%clk 0:00:06.2]} 44... a4 {[%clk 0:02:45]} 45. Rc1 {[%clk 0:00:04]} 45... d2
{[%clk 0:02:43]} 46. Rd1 {[%clk 0:00:02.6]} 46... a3 {[%clk 0:02:44.4]} 47. Ke2
{[%clk 0:00:03.4]} 47... a2 {[%clk 0:02:45.9]} 48. Ng5 {[%clk 0:00:03.1]} 48...
a1=Q {[%clk 0:02:44.1]} 49. Rxa1 {[%clk 0:00:05]} 49... Bxa1 {[%clk 0:02:45.2]}
50. Kd1 {[%clk 0:00:06.9]} 50... Bc3 {[%clk 0:02:45.7]} 51. Ne4 {[%clk
0:00:08.1]} 51... b4 {[%clk 0:02:46.2]} 52. g4 {[%clk 0:00:09.1]} 52... Ra5
{[%clk 0:02:46.3]} 53. Ke2 {[%clk 0:00:07.3]} 53... Ra2 {[%clk 0:02:45.7]} 54.
f5 {[%clk 0:00:07.1]} 54... Ra1 {[%clk 0:02:46.5]} 55. Nf2 {[%clk 0:00:06.3]}
55... Re1+ {[%clk 0:02:46.1]} 56. Kd3 {[%clk 0:00:06.2]} 56... Rf1 {[%clk
0:02:47.2]} 0-1

[Event "GrandPrix_30.05"]
[Site "Chess.com"]
[Date "2020.05.30"]
[Round "5"]
[White "SacrificeGod"]
[Black "SergeyVashchilov"]
[Result "1-0"]
[WhiteElo "2235"]
[BlackElo "2043"]
[TimeControl "600+2"]
[EndTime "10:25:39 PDT"]
[Termination "SacrificeGod won by checkmate"]

1. e4 {[%clk 0:10:01.9]} 1... e6 {[%clk 0:10:01]} 2. d4 {[%clk 0:10:01]} 2... d5
{[%clk 0:10:02]} 3. Nd2 {[%clk 0:10:02.2]} 3... Nc6 {[%clk 0:10:02.5]} 4. Ngf3
{[%clk 0:10:01.8]} 4... Nf6 {[%clk 0:10:03.3]} 5. e5 {[%clk 0:10:03.1]} 5... Nd7
{[%clk 0:10:04.4]} 6. Nb3 {[%clk 0:10:04.2]} 6... a5 {[%clk 0:10:04.5]} 7. a4
{[%clk 0:10:03.7]} 7... b6 {[%clk 0:10:04.8]} 8. Be2 {[%clk 0:09:35.6]} 8... Ba6
{[%clk 0:10:04.4]} 9. Bxa6 {[%clk 0:09:35.1]} 9... Rxa6 {[%clk 0:10:06.3]} 10.
O-O {[%clk 0:09:36.2]} 10... Be7 {[%clk 0:10:07.6]} 11. c3 {[%clk 0:09:35]}
11... Ra8 {[%clk 0:09:59.7]} 12. Ne1 {[%clk 0:09:35.1]} 12... f6 {[%clk
0:09:43.7]} 13. exf6 {[%clk 0:09:14.1]} 13... Bxf6 {[%clk 0:09:33.9]} 14. f4
{[%clk 0:08:50.5]} 14... O-O {[%clk 0:09:34]} 15. Nd3 {[%clk 0:08:50.3]} 15...
Qe8 {[%clk 0:09:17]} 16. Nd2 {[%clk 0:08:42.7]} 16... Ne7 {[%clk 0:09:01.5]} 17.
Nf3 {[%clk 0:08:40.7]} 17... Qg6 {[%clk 0:08:30.1]} 18. Qe2 {[%clk 0:08:07.9]}
18... Qf5 {[%clk 0:08:21]} 19. Re1 {[%clk 0:07:45.4]} 19... Kf7 {[%clk
0:06:55.4]} 20. Ng5+ {[%clk 0:07:17.6]} 20... Bxg5 {[%clk 0:06:50.1]} 21. fxg5
{[%clk 0:07:19.5]} 21... Kg8 {[%clk 0:06:18.7]} 22. Qxe6+ {[%clk 0:07:05.7]}
22... Rf7 {[%clk 0:05:51.1]} 23. Qxf5 {[%clk 0:06:04.7]} 23... Nxf5 {[%clk
0:05:53]} 24. Nf4 {[%clk 0:05:18.8]} 24... c6 {[%clk 0:05:35]} 25. g6 {[%clk
0:04:57.4]} 25... hxg6 {[%clk 0:05:05.7]} 26. Nxg6 {[%clk 0:04:59.3]} 26... Kh7
{[%clk 0:04:56.5]} 27. Nf4 {[%clk 0:04:47.7]} 27... Nf6 {[%clk 0:04:32.8]} 28.
Ne6 {[%clk 0:04:17.4]} 28... Re7 {[%clk 0:03:56.1]} 29. Ng5+ {[%clk 0:02:59.7]}
29... Kg6 {[%clk 0:03:56.9]} 30. Rxe7 {[%clk 0:02:43.8]} 30... Nxe7 {[%clk
0:03:58.8]} 31. Bf4 {[%clk 0:02:36]} 31... Kf5 {[%clk 0:02:37.6]} 32. Rf1 {[%clk
0:02:23]} 32... Ng6 {[%clk 0:02:30.4]} 33. Bc1+ {[%clk 0:02:11.1]} 33... Kg4
{[%clk 0:02:30.5]} 34. h3+ {[%clk 0:01:14.1]} 34... Kg3 {[%clk 0:01:43.1]} 35.
Ne6 {[%clk 0:01:12.9]} 35... Nh5 {[%clk 0:00:40.8]} 36. Rf3+ {[%clk 0:00:34.9]}
36... Kh4 {[%clk 0:00:41.4]} 37. Bg5# {[%clk 0:00:35.3]} 1-0

[Event "GrandPrix_30.05"]
[Site "Chess.com"]
[Date "2020.05.30"]
[Round "5"]
[White "BMOchsner"]
[Black "AsadliVugar"]
[Result "0-1"]
[WhiteElo "2314"]
[BlackElo "2530"]
[TimeControl "600+2"]
[EndTime "10:25:40 PDT"]
[Termination "AsadliVugar won on time"]

1. e4 {[%clk 0:10:01.9]} 1... g6 {[%clk 0:09:59.4]} 2. d4 {[%clk 0:10:01.1]}
2... Bg7 {[%clk 0:10:01.1]} 3. Nc3 {[%clk 0:10:02.1]} 3... d6 {[%clk 0:10:02.7]}
4. Be3 {[%clk 0:10:03.2]} 4... a6 {[%clk 0:10:02.6]} 5. h4 {[%clk 0:10:01.2]}
5... h6 {[%clk 0:10:00.7]} 6. Qd2 {[%clk 0:09:58]} 6... b5 {[%clk 0:10:01.8]} 7.
O-O-O {[%clk 0:09:48.1]} 7... Bb7 {[%clk 0:10:02.7]} 8. f3 {[%clk 0:09:48.4]}
8... Nd7 {[%clk 0:10:02.4]} 9. Nh3 {[%clk 0:08:53.7]} 9... Rc8 {[%clk
0:09:54.8]} 10. Nf2 {[%clk 0:08:14.2]} 10... c5 {[%clk 0:09:35.1]} 11. dxc5
{[%clk 0:07:41]} 11... Nxc5 {[%clk 0:09:29.9]} 12. Kb1 {[%clk 0:07:38]} 12...
Nd7 {[%clk 0:08:35.9]} 13. Bd4 {[%clk 0:07:30]} 13... Bxd4 {[%clk 0:08:27.2]}
14. Qxd4 {[%clk 0:07:29.9]} 14... Ngf6 {[%clk 0:08:28.2]} 15. h5 {[%clk
0:07:18.5]} 15... gxh5 {[%clk 0:08:04.9]} 16. Nh3 {[%clk 0:06:27.8]} 16... Rg8
{[%clk 0:07:55.9]} 17. Qd2 {[%clk 0:06:14.5]} 17... Qc7 {[%clk 0:07:37.3]} 18.
Nf4 {[%clk 0:04:46.1]} 18... Qc5 {[%clk 0:07:14.8]} 19. Nd3 {[%clk 0:03:51.5]}
19... Qc7 {[%clk 0:06:23]} 20. Qxh6 {[%clk 0:03:18.3]} 20... e6 {[%clk
0:05:32.4]} 21. Rd2 {[%clk 0:02:53.5]} 21... Ke7 {[%clk 0:05:30.2]} 22. Qe3
{[%clk 0:02:35.4]} 22... Bc6 {[%clk 0:04:57.9]} 23. Nf4 {[%clk 0:02:34.1]} 23...
Rh8 {[%clk 0:04:50.4]} 24. Nfd5+ {[%clk 0:01:56.4]} 24... Bxd5 {[%clk
0:04:49.3]} 25. exd5 {[%clk 0:01:57]} 25... Qc5 {[%clk 0:04:36.5]} 26. Qe1
{[%clk 0:01:53.5]} 26... e5 {[%clk 0:04:32.1]} 27. f4 {[%clk 0:01:23]} 27...
Rcg8 {[%clk 0:04:19.3]} 28. Bd3 {[%clk 0:01:14.3]} 28... Rg4 {[%clk 0:04:14.8]}
29. fxe5 {[%clk 0:01:08.3]} 29... Nxe5 {[%clk 0:04:15.5]} 30. Re2 {[%clk
0:01:00.5]} 30... Qd4 {[%clk 0:04:12.3]} 31. Bf5 {[%clk 0:00:49.5]} 31... Rf4
{[%clk 0:04:09.5]} 32. Bh3 {[%clk 0:00:48.7]} 32... b4 {[%clk 0:04:00.2]} 33. g3
{[%clk 0:00:46.9]} 33... Rf3 {[%clk 0:03:47.7]} 34. Ne4 {[%clk 0:00:46]} 34...
Nxd5 {[%clk 0:03:39.2]} 35. Rd2 {[%clk 0:00:30.8]} 35... Qc4 {[%clk 0:03:40.3]}
36. Bf1 {[%clk 0:00:24]} 36... Qc6 {[%clk 0:03:35.8]} 37. Bg2 {[%clk 0:00:17.3]}
37... Nc3+ {[%clk 0:03:23]} 38. Nxc3 {[%clk 0:00:14.5]} 38... bxc3 {[%clk
0:03:24.4]} 39. Re2 {[%clk 0:00:11.1]} 39... Qb5 {[%clk 0:03:17]} 40. b3 {[%clk
0:00:10.1]} 40... Rxg3 {[%clk 0:03:17.8]} 41. Rh4 {[%clk 0:00:05.9]} 41... Rg4
{[%clk 0:03:16.5]} 42. Rh3 {[%clk 0:00:05.2]} 42... Rhg8 {[%clk 0:03:15.9]} 43.
Bf1 {[%clk 0:00:05.1]} 43... Rg1 {[%clk 0:03:15.4]} 44. Rxc3 {[%clk 0:00:02.9]}
44... Qa5 {[%clk 0:03:14.5]} 45. Rce3 {[%clk 0:00:03.2]} 45... Qxe1+ {[%clk
0:03:14.8]} 46. Rxe1 {[%clk 0:00:05.1]} 46... Rh1 {[%clk 0:03:05.9]} 47. Bxa6
{[%clk 0:00:04.6]} 47... Rgg1 {[%clk 0:03:06.3]} 48. Rxg1 {[%clk 0:00:05.5]}
48... Rxg1+ {[%clk 0:03:07.9]} 49. Kb2 {[%clk 0:00:06.9]} 49... f5 {[%clk
0:03:09.6]} 50. Bb7 {[%clk 0:00:06.5]} 50... Kf6 {[%clk 0:03:10]} 51. a4 {[%clk
0:00:06.8]} 51... f4 {[%clk 0:03:11.4]} 52. Rh3 {[%clk 0:00:07.5]} 52... Rg7
{[%clk 0:03:08.2]} 53. Bd5 {[%clk 0:00:07.1]} 53... Kg5 {[%clk 0:03:06.6]} 54.
a5 {[%clk 0:00:07.8]} 54... Ra7 {[%clk 0:03:06.9]} 55. b4 {[%clk 0:00:07.9]}
55... h4 {[%clk 0:03:07.2]} 56. Rb3 {[%clk 0:00:06.3]} 56... Kg4 {[%clk
0:03:00.5]} 57. b5 {[%clk 0:00:07.3]} 57... Rxa5 {[%clk 0:03:01.9]} 58. b6
{[%clk 0:00:08.7]} 58... Rxd5 {[%clk 0:03:03.1]} 59. b7 {[%clk 0:00:09.5]} 59...
Nd7 {[%clk 0:03:04.7]} 60. b8=Q {[%clk 0:00:07]} 60... Nxb8 {[%clk 0:03:05.8]}
61. Rxb8 {[%clk 0:00:08.9]} 61... h3 {[%clk 0:03:07.4]} 0-1